[Event "Paracin Open 2022"]
[Site "Paracin"]
[Date "2022.07.12"]
[Round "5.19"]
[White "Amartuvshin, Ganzorig"]
[Black "Jain Kashish Manoj"]
[Result "1/2-1/2"]
[ECO "D46"]
[WhiteElo "2409"]
[BlackElo "2147"]
[Annotator "ChessBase"]
[PlyCount "139"]
[EventDate "2022.07.08"]
[EventCountry "SRB"]
[SourceTitle "playchess.com"]
[Source "ChessBase"]
[SourceQuality "1"]
[TimeControl "5400+30"]

1. d4 {[%emt 0:00:02]} d5 {[%emt 0:00:09]} 2. c4 {[%emt 0:00:05]} c6 {[%emt 0:00:06]} 3. Nc3 {[%emt 0:00:05]} Nf6 {[%emt 0:00:08]} 4. e3 {[%emt 0:00:05]} e6 {[%emt 0:00:06]} 5. Nf3 {[%emt 0:00:06]} Nbd7 {[%emt 0:00:08]} 6. Qc2 {[%emt 0:00:12]} Bd6 {[%emt 0:00:13]} 7. Bd3 {[%emt 0:00:09]} O-O {[%emt 0:00:08]} 8. O-O {[%emt 0:00:07]} dxc4 {[%emt 0:00:07]} 9. Bxc4 {[%emt 0:00:07]} b5 {[%emt 0:00:06]} 10. Be2 {[%emt 0:00:28]} Bb7 {[%emt 0:02:58]} 11. e4 {[%emt 0:01:05]} e5 {[%emt 0:07:17]} 12. dxe5 {[%emt 0:00:20]} Nxe5 {[%emt 0:00:08]} 13. Nh4 {[%emt 0:00:42]} Bc8 {[%emt 0:13:39]} 14. Nf5 {[%emt 0:01:36]} Bxf5 {[%emt 0:00:50]} 15. exf5 {[%emt 0:00:09]} Qc7 {[%emt 0:02:04]} 16. h3 {[%emt 0:08:26]} Ned7 {[%emt 0:03:06]} 17. Bg5 {[%emt 0:05:31]} Rfe8 {[%emt 0:07:33]} 18. Bf3 {[%emt 0:06:52]} Ne5 {[%emt 0:11:02]} 19. Bxf6 {[%emt 0:03:27]} Nxf3+ {[%emt 0:00:10]} 20. gxf3 {[%emt 0:00:10]} gxf6 {[%emt 0:00:01]} 21. Ne4 {[%emt 0:00:45]} Be7 {[%emt 0:01:57]} 22. Qc3 {[%emt 0:06:17]} Qf4 {[%emt 0:03:54]} 23. Qxc6 {[%emt 0:10:48]} Qxf5 {[%emt 0:00:38]} 24. Ng3 {[%emt 0:01:04]} Qxh3 {[%emt 0:03:49]} 25. Rac1 {[%emt 0:14:27]} b4 {[%emt 0:29:21]} 26. Rfe1 {[%emt 0:02:22]} Rec8 {[%emt 0:01:28]} 27. Qd5 {[%emt 0:01:42]} Rxc1 {[%emt 0:03:38]} 28. Qxa8+ {[%emt 0:00:17]} Rc8 {[%emt 0:00:08]} 29. Qd5 {[%emt 0:02:20]} Rc5 {[%emt 0:05:49]} 30. Qd3 {[%emt 0:03:18]} Bf8 {[%emt 0:02:59]} 31. Qd2 {[%emt 0:08:24]} Rg5 {[%emt 0:00:45]} 32. Re8 {[%emt 0:06:18]} Kg7 {[%emt 0:00:01]} 33. Rxf8 {[%emt 0:00:39]} Rxg3+ {[%emt 0:00:21]} 34. fxg3 {[%emt 0:00:04]} Qxg3+ {[%emt 0:00:03]} 35. Kh1 {[%emt 0:00:08]} Qh3+ {[%emt 0:00:52]} 36. Kg1 {[%emt 0:00:06]} Qg3+ {[%emt 0:00:01]} 37. Kf1 {[%emt 0:00:08]} Qxf3+ {[%emt 0:00:01]} 38. Kg1 {[%emt 0:00:09]} Qg4+ {[%emt 0:00:03]} 39. Kf1 {[%emt 0:00:53]} Kxf8 {[%emt 0:00:02]} 40. Qh6+ {[%emt 0:00:07]} Kg8 {[%emt 0:02:19]} 41. Qxf6 {[%emt 0:00:05]} h5 {[%emt 0:00:03]} 42. Qe7 {[%emt 0:00:12]} Qf5+ {[%emt 0:00:59]} 43. Kg2 {[%emt 0:00:07]} a5 {[%emt 0:00:31]} 44. a3 {[%emt 0:00:09]} Qc2+ {[%emt 0:00:40]} 45. Kh3 {[%emt 0:00:40]} Qxb2 {[%emt 0:00:38]} 46. Qd8+ {[%emt 0:00:12]} Kh7 {[%emt 0:00:26]} 47. Qd3+ {[%emt 0:00:08]} Kg7 {[%emt 0:00:12]} 48. Qg3+ {[%emt 0:00:04]} Kf6 {[%emt 0:00:34]} 49. Qd6+ {[%emt 0:00:52]} Kf5 {[%emt 0:00:02]} 50. Qd5+ {[%emt 0:00:31]} Kf4 {[%emt 0:01:49]} 51. Qxf7+ {[%emt 0:00:11]} Ke3 {[%emt 0:00:52]} 52. axb4 {[%emt 0:01:55]} axb4 {[%emt 0:00:01]} 53. Qe6+ {[%emt 0:00:39]} Kd2 {[%emt 0:00:22]} 54. Qd5+ {[%emt 0:00:24]} Ke3 {[%emt 0:01:19]} 55. Qe6+ {[%emt 0:00:07]} Kd3 {[%emt 0:00:38]} 56. Qf5+ {[%emt 0:00:13]} Kc4 {[%emt 0:00:31]} 57. Qe6+ {[%emt 0:00:38]} Kc3 {[%emt 0:00:29]} 58. Qe3+ {[%emt 0:01:08]} Kc2 {[%emt 0:00:13]} 59. Qe4+ {[%emt 0:00:06]} Kb3 {[%emt 0:00:16]} 60. Qd5+ {[%emt 0:00:08]} Ka4 {[%emt 0:00:06]} 61. Qa8+ {[%emt 0:00:20]} Kb5 {[%emt 0:00:07]} 62. Qd5+ {[%emt 0:00:19]} Ka4 {[%emt 0:00:33]} 63. Qa8+ {[%emt 0:00:16]} Kb3 {[%emt 0:00:04]} 64. Qd5+ {[%emt 0:00:05]} Kc3 {[%emt 0:00:01]} 65. Qe5+ {[%emt 0:00:33]} Kc2 {[%emt 0:00:01]} 66. Qe4+ {[%emt 0:00:09]} Kd2 {[%emt 0:00:04]} 67. Qg2+ {[%emt 0:00:28]} Kc3 {[%emt 0:00:05]} 68. Qc6+ {[%emt 0:00:25]} Kd3 {[%emt 0:00:23]} 69. Qf3+ {[%emt 0:00:09]} Kc2 {[%emt 0:00:45]} 70. Qe4+ {[%emt 0:00:09]} 1/2-1/2

[Event "Paracin Open 2022"]
[Site "Paracin"]
[Date "2022.07.12"]
[Round "5.20"]
[White "Petrov, Nikita"]
[Black "Antova, Gabriela"]
[Result "1-0"]
[ECO "B80"]
[WhiteElo "2558"]
[BlackElo "2275"]
[Annotator "ChessBase"]
[PlyCount "89"]
[EventDate "2022.07.08"]
[EventCountry "SRB"]
[SourceTitle "playchess.com"]
[Source "ChessBase"]
[SourceQuality "1"]
[TimeControl "5400+30"]

1. e4 {[%emt 0:00:03]} c5 {[%emt 0:01:30]} 2. Nf3 {[%emt 0:00:22]} d6 {[%emt 0:00:16]} 3. d4 {[%emt 0:00:16]} cxd4 {[%emt 0:00:12]} 4. Nxd4 {[%emt 0:00:07]} Nf6 {[%emt 0:00:08]} 5. Nc3 {[%emt 0:00:08]} a6 {[%emt 0:00:11]} 6. Be3 {[%emt 0:01:10]} e6 {[%emt 0:00:23]} 7. a3 {[%emt 0:00:52]} Be7 {[%emt 0:00:24]} 8. Qe2 {[%emt 0:01:04]} b5 {[%emt 0:19:21]} 9. O-O-O {[%emt 0:03:30]} Qc7 {[%emt 0:01:55]} 10. g4 {[%emt 0:00:38]} Bb7 {[%emt 0:00:47]} 11. Bg2 {[%emt 0:02:44]} Nfd7 {[%emt 0:02:41]} 12. g5 {[%emt 0:09:56]} Nb6 {[%emt 0:07:01]} 13. h4 {[%emt 0:01:33]} N8d7 {[%emt 0:08:55]} 14. h5 {[%emt 0:03:45]} Ne5 {[%emt 0:14:02]} 15. g6 {[%emt 0:08:50]} O-O {[%emt 0:16:33]} 16. Bh3 {[%emt 0:14:28]} Bc8 {[%emt 0:02:39]} 17. gxf7+ {[%emt 0:16:11]} Kxf7 {[%emt 0:01:07]} 18. Rhg1 {[%emt 0:00:37]} Rg8 {[%emt 0:07:00]} 19. Bg5 {[%emt 0:05:41]} Na4 {[%emt 0:05:21]} 20. Nxa4 {[%emt 0:04:39]} bxa4 {[%emt 0:00:08]} 21. f4 {[%emt 0:02:04]} Nc4 {[%emt 0:01:23]} 22. Bxe7 {[%emt 0:08:26]} Kxe7 {[%emt 0:00:03]} 23. f5 {[%emt 0:03:31]} Rb8 {[%emt 0:04:22]} 24. f6+ {[%emt 0:04:38]} Kxf6 {[%emt 0:01:19]} 25. Rdf1+ {[%emt 0:01:07]} Ke7 {[%emt 0:00:10]} 26. Qf3 {[%emt 0:02:54]} Ke8 {[%emt 0:01:44]} 27. Nxe6 {[%emt 0:01:28]} Bxe6 {[%emt 0:01:17]} 28. Bxe6 {[%emt 0:00:06]} Ne5 {[%emt 0:00:09]} 29. Qe3 {[%emt 0:02:14]} Rf8 {[%emt 0:00:43]} 30. Rxf8+ {[%emt 0:00:32]} Kxf8 {[%emt 0:00:02]} 31. h6 {[%emt 0:00:31]} g6 {[%emt 0:00:31]} 32. Rf1+ {[%emt 0:00:48]} Ke8 {[%emt 0:01:14]} 33. Bd5 {[%emt 0:01:04]} Qb6 {[%emt 0:01:47]} 34. Qc3 {[%emt 0:00:15]} Ke7 {[%emt 0:00:35]} 35. Kb1 {[%emt 0:00:50]} Qc5 {[%emt 0:01:01]} 36. Qh3 {[%emt 0:00:29]} Re8 {[%emt 0:00:57]} 37. Qe6+ {[%emt 0:00:32]} Kd8 {[%emt 0:00:01]} 38. Qf6+ {[%emt 0:00:06]} Kd7 {[%emt 0:01:01]} 39. Qg7+ {[%emt 0:00:23]} Re7 {[%emt 0:00:05]} 40. Qg8 {[%emt 0:00:09]} Qa7 {[%emt 0:00:52]} 41. Rf8 {[%emt 0:00:58]} Kc7 {[%emt 0:00:32]} 42. Rc8+ {[%emt 0:00:15]} Kb6 {[%emt 0:00:09]} 43. Qd8+ {[%emt 0:00:05]} Rc7 {[%emt 0:00:37]} 44. Qxd6+ {[%emt 0:00:07]} Nc6 {[%emt 0:00:04]} 45. Bxc6 {[%emt 0:00:49]} 1-0

[Event "Paracin Open 2022"]
[Site "Paracin"]
[Date "2022.07.13"]
[Round "6.1"]
[White "Praggnanandhaa R"]
[Black "Urazayev, Arystanbek"]
[Result "1-0"]
[ECO "E95"]
[WhiteElo "2648"]
[BlackElo "2430"]
[Annotator "ChessBase"]
[PlyCount "87"]
[EventDate "2022.07.08"]
[EventCountry "SRB"]
[SourceTitle "playchess.com"]
[Source "ChessBase"]
[SourceQuality "1"]
[TimeControl "5400+30"]

1. d4 {[%emt 0:00:49]} Nf6 {[%emt 0:00:40]} 2. c4 {[%emt 0:00:09]} g6 {[%emt 0:00:38]} 3. Nc3 {[%emt 0:00:09]} Bg7 {[%emt 0:00:08]} 4. e4 {[%emt 0:00:23]} d6 {[%emt 0:00:06]} 5. Nf3 {[%emt 0:00:41]} O-O {[%emt 0:00:19]} 6. Be2 {[%emt 0:00:14]} e5 {[%emt 0:01:20]} 7. O-O {[%emt 0:00:10]} h6 {[%emt 0:00:19]} 8. Re1 {[%emt 0:03:13]} Nbd7 {[%emt 0:01:19]} 9. Qc2 {[%emt 0:09:34]} Re8 {[%emt 0:04:39]} 10. dxe5 {[%emt 0:05:21]} dxe5 {[%emt 0:00:51]} 11. Be3 {[%emt 0:03:29]} c6 {[%emt 0:06:17]} 12. h3 {[%emt 0:08:32]} Nh5 {[%emt 0:02:46]} 13. c5 {[%emt 0:06:05]} Nf4 {[%emt 0:02:07]} 14. Rad1 {[%emt 0:04:27]} Qe7 {[%emt 0:04:45]} 15. Rd6 {[%emt 0:04:16]} Nxe2+ {[%emt 0:02:49]} 16. Qxe2 {[%emt 0:01:50]} Nf6 {[%emt 0:02:55]} 17. b4 {[%emt 0:06:04]} Nh5 {[%emt 0:11:20]} 18. b5 {[%emt 0:03:40]} Qc7 {[%emt 0:02:25]} 19. Qd2 {[%emt 0:06:25]} Kh7 {[%emt 0:01:04]} 20. a4 {[%emt 0:02:46]} Be6 {[%emt 0:07:43]} 21. g4 {[%emt 0:05:54]} Nf4 {[%emt 0:01:44]} 22. Bxf4 {[%emt 0:00:38]} exf4 {[%emt 0:00:11]} 23. bxc6 {[%emt 0:00:10]} bxc6 {[%emt 0:03:38]} 24. e5 {[%emt 0:03:16]} Qa5 {[%emt 0:02:04]} 25. Rxc6 {[%emt 0:05:17]} Rac8 {[%emt 0:00:47]} 26. Rxc8 {[%emt 0:01:33]} Rxc8 {[%emt 0:00:06]} 27. Ne4 {[%emt 0:00:21]} Qxd2 {[%emt 0:02:08]} 28. Nfxd2 {[%emt 0:00:18]} Bxe5 {[%emt 0:05:48]} 29. Ng5+ {[%emt 0:00:36]} hxg5 {[%emt 0:00:05]} 30. Rxe5 {[%emt 0:00:03]} Rd8 {[%emt 0:11:11]} 31. Ne4 {[%emt 0:00:45]} Rd1+ {[%emt 0:06:03]} 32. Kh2 {[%emt 0:00:28]} Kg7 {[%emt 0:03:57]} 33. c6 {[%emt 0:02:00]} Rc1 {[%emt 0:04:49]} 34. Rc5 {[%emt 0:03:00]} Rxc5 {[%emt 0:00:08]} 35. Nxc5 {[%emt 0:00:04]} Kf6 {[%emt 0:00:07]} 36. Ne4+ {[%emt 0:01:14]} Ke7 {[%emt 0:00:56]} 37. Nxg5 {[%emt 0:00:13]} Bb3 {[%emt 0:02:13]} 38. a5 {[%emt 0:03:24]} Kd6 {[%emt 0:00:20]} 39. h4 {[%emt 0:01:20]} Kxc6 {[%emt 0:00:46]} 40. h5 {[%emt 0:01:14]} gxh5 {[%emt 0:00:15]} 41. gxh5 {[%emt 0:00:06]} Kb5 {[%emt 0:07:31]} 42. Ne4 {[%emt 0:01:42]} f5 {[%emt 0:01:39]} 43. h6 {[%emt 0:00:21]} fxe4 {[%emt 0:00:31]} 44. h7 {[%emt 0:00:05]} 1-0

[Event "Paracin Open 2022"]
[Site "Paracin"]
[Date "2022.07.13"]
[Round "6.2"]
[White "Makarian, Rudik"]
[Black "Predke, Alexandr"]
[Result "1/2-1/2"]
[ECO "E06"]
[WhiteElo "2533"]
[BlackElo "2688"]
[Annotator "ChessBase"]
[PlyCount "33"]
[EventDate "2022.07.08"]
[EventCountry "SRB"]
[SourceTitle "playchess.com"]
[Source "ChessBase"]
[SourceQuality "1"]
[TimeControl "5400+30"]

1. Nf3 {[%emt 0:00:05]} Nf6 {[%emt 0:00:33]} 2. c4 {[%emt 0:00:31]} e6 {[%emt 0:00:05]} 3. g3 {[%emt 0:00:28]} d5 {[%emt 0:00:07]} 4. Bg2 {[%emt 0:00:03]} Be7 {[%emt 0:00:04]} 5. d4 {[%emt 0:00:23]} O-O {[%emt 0:00:06]} 6. O-O {[%emt 0:00:05]} c6 {[%emt 0:00:09]} 7. Qc2 {[%emt 0:01:06]} b6 {[%emt 0:00:14]} 8. Bf4 {[%emt 0:00:05]} Bb7 {[%emt 0:02:57]} 9. Nbd2 {[%emt 0:01:03]} Na6 {[%emt 0:19:36]} 10. Rad1 {[%emt 0:12:46]} c5 {[%emt 0:02:56]} 11. dxc5 {[%emt 0:00:52]} Nxc5 {[%emt 0:00:32]} 12. Ne5 {[%emt 0:03:03]} Rc8 {[%emt 0:09:57]} 13. b4 {[%emt 0:02:27]} Ncd7 {[%emt 0:00:02]} 14. Qa4 {[%emt 0:02:59]} a6 {[%emt 0:04:31]} 15. Nxd7 {[%emt 0:05:54]} Qxd7 {[%emt 0:01:14]} 16. Qxd7 {[%emt 0:00:08]} Nxd7 {[%emt 0:00:03]} 17. cxd5 {[%emt 0:05:33]} 1/2-1/2

[Event "Paracin Open 2022"]
[Site "Paracin"]
[Date "2022.07.13"]
[Round "6.3"]
[White "Agmanov, Zhandos"]
[Black "Pranav Vijay"]
[Result "1/2-1/2"]
[ECO "A27"]
[WhiteElo "2459"]
[BlackElo "2265"]
[Annotator "ChessBase"]
[PlyCount "77"]
[EventDate "2022.07.08"]
[EventCountry "SRB"]
[SourceTitle "playchess.com"]
[Source "ChessBase"]
[SourceQuality "1"]
[TimeControl "5400+30"]

1. c4 {[%emt 0:00:05]} e5 {[%emt 0:00:26]} 2. Nc3 {[%emt 0:00:12]} Nc6 {[%emt 0:00:34]} 3. Nf3 {[%emt 0:00:09]} f5 {[%emt 0:02:05]} 4. g3 {[%emt 0:00:57]} Nf6 {[%emt 0:04:00]} 5. d4 {[%emt 0:00:16]} e4 {[%emt 0:01:41]} 6. Nh4 {[%emt 0:00:47]} g6 {[%emt 0:09:26]} 7. Bg5 {[%emt 0:00:41]} Bg7 {[%emt 0:01:34]} 8. e3 {[%emt 0:00:25]} Ne7 {[%emt 0:04:28]} 9. Ng2 {[%emt 0:02:26]} d6 {[%emt 0:07:16]} 10. Nf4 {[%emt 0:00:42]} c6 {[%emt 0:01:42]} 11. h4 {[%emt 0:01:06]} h6 {[%emt 0:00:38]} 12. Bxf6 {[%emt 0:00:34]} Bxf6 {[%emt 0:00:02]} 13. Be2 {[%emt 0:07:20]} Kf7 {[%emt 0:03:07]} 14. Qc2 {[%emt 0:04:53]} a6 {[%emt 0:06:59]} 15. Qb3 {[%emt 0:15:20]} Kg7 {[%emt 0:05:38]} 16. Qa3 {[%emt 0:00:29]} Rb8 {[%emt 0:03:39]} 17. c5 {[%emt 0:01:50]} dxc5 {[%emt 0:00:33]} 18. dxc5 {[%emt 0:00:06]} b5 {[%emt 0:00:38]} 19. cxb6 {[%emt 0:08:32]} Qxb6 {[%emt 0:00:19]} 20. O-O-O {[%emt 0:01:02]} Re8 {[%emt 0:11:35]} 21. Rd2 {[%emt 0:06:19]} Be5 {[%emt 0:03:11]} 22. Bc4 {[%emt 0:02:34]} Qb4 {[%emt 0:03:54]} 23. Qxb4 {[%emt 0:03:11]} Rxb4 {[%emt 0:00:03]} 24. Bb3 {[%emt 0:02:11]} Kf6 {[%emt 0:04:55]} 25. Rhd1 {[%emt 0:01:26]} Bc7 {[%emt 0:02:17]} 26. Kc2 {[%emt 0:04:01]} Rh8 {[%emt 0:02:08]} 27. Rh1 {[%emt 0:07:46]} a5 {[%emt 0:02:38]} 28. a3 {[%emt 0:00:43]} Rb8 {[%emt 0:00:32]} 29. Bc4 {[%emt 0:00:26]} Rd8 {[%emt 0:01:50]} 30. Rxd8 {[%emt 0:00:32]} Bxd8 {[%emt 0:00:05]} 31. h5 {[%emt 0:12:59]} g5 {[%emt 0:00:08]} 32. Nfe2 {[%emt 0:00:07]} Bc7 {[%emt 0:01:47]} 33. Rd1 {[%emt 0:00:30]} Be6 {[%emt 0:05:15]} 34. Bxe6 {[%emt 0:00:26]} Kxe6 {[%emt 0:00:02]} 35. Nd4+ {[%emt 0:03:52]} Ke5 {[%emt 0:00:20]} 36. Na4 {[%emt 0:00:47]} Rd8 {[%emt 0:01:23]} 37. b3 {[%emt 0:05:57]} Kf6 {[%emt 0:01:46]} 38. Nb2 {[%emt 0:00:52]} Rd5 {[%emt 0:02:07]} 39. Nc4 {[%emt 0:00:31]} 1/2-1/2

[Event "Paracin Open 2022"]
[Site "Paracin"]
[Date "2022.07.13"]
[Round "6.4"]
[White "Gundavaa, Bayarsaikhan"]
[Black "Nogerbek, Kazybek"]
[Result "1/2-1/2"]
[ECO "A14"]
[WhiteElo "2503"]
[BlackElo "2437"]
[Annotator "ChessBase"]
[PlyCount "41"]
[EventDate "2022.07.08"]
[EventCountry "SRB"]
[SourceTitle "playchess.com"]
[Source "ChessBase"]
[SourceQuality "1"]
[TimeControl "5400+30"]

1. Nf3 {[%emt 0:00:36]} d5 {[%emt 0:00:14]} 2. e3 {[%emt 0:00:33]} Nf6 {[%emt 0:00:31]} 3. c4 {[%emt 0:00:14]} e6 {[%emt 0:00:31]} 4. b3 {[%emt 0:00:52]} b6 {[%emt 0:00:57]} 5. g3 {[%emt 0:05:23]} Bb7 {[%emt 0:00:37]} 6. Bg2 {[%emt 0:00:25]} Be7 {[%emt 0:00:13]} 7. O-O {[%emt 0:00:22]} O-O {[%emt 0:00:17]} 8. Bb2 {[%emt 0:00:04]} Nbd7 {[%emt 0:00:15]} 9. Nc3 {[%emt 0:01:14]} dxc4 {[%emt 0:00:27]} 10. bxc4 {[%emt 0:00:33]} Ne4 {[%emt 0:00:07]} 11. Qc2 {[%emt 0:09:21]} Nxc3 {[%emt 0:00:47]} 12. Bxc3 {[%emt 0:00:13]} c5 {[%emt 0:04:11]} 13. a4 {[%emt 0:11:48]} Qc7 {[%emt 0:03:25]} 14. a5 {[%emt 0:02:53]} Bf6 {[%emt 0:02:37]} 15. Ra3 {[%emt 0:07:30]} h6 {[%emt 0:03:51]} 16. Rfa1 {[%emt 0:01:13]} Bc6 {[%emt 0:04:19]} 17. axb6 {[%emt 0:18:04]} axb6 {[%emt 0:00:33]} 18. Ng5 {[%emt 0:00:11]} Bxg5 {[%emt 0:00:20]} 19. Rxa8 {[%emt 0:00:03]} Rxa8 {[%emt 0:00:08]} 20. Rxa8+ {[%emt 0:00:03]} Bxa8 {[%emt 0:00:06]} 21. Bxa8 {[%emt 0:00:04]} 1/2-1/2

[Event "Paracin Open 2022"]
[Site "Paracin"]
[Date "2022.07.13"]
[Round "6.5"]
[White "Srihari L R"]
[Black "Arjun Kalyan"]
[Result "1/2-1/2"]
[ECO "E04"]
[WhiteElo "2431"]
[BlackElo "2499"]
[Annotator "ChessBase"]
[PlyCount "119"]
[EventDate "2022.07.08"]
[EventCountry "SRB"]
[SourceTitle "playchess.com"]
[Source "ChessBase"]
[SourceQuality "1"]
[TimeControl "5400+30"]

1. d4 {[%emt 0:00:29]} Nf6 {[%emt 0:00:05]} 2. c4 {[%emt 0:00:11]} e6 {[%emt 0:00:05]} 3. g3 {[%emt 0:00:16]} d5 {[%emt 0:00:05]} 4. Bg2 {[%emt 0:00:08]} Bb4+ {[%emt 0:00:05]} 5. Nd2 {[%emt 0:00:17]} O-O {[%emt 0:00:07]} 6. Ngf3 {[%emt 0:00:13]} dxc4 {[%emt 0:00:09]} 7. Qc2 {[%emt 0:01:08]} c5 {[%emt 0:00:05]} 8. dxc5 {[%emt 0:03:00]} Nc6 {[%emt 0:01:56]} 9. O-O {[%emt 0:00:38]} e5 {[%emt 0:00:14]} 10. Rd1 {[%emt 0:07:16]} Qe7 {[%emt 0:05:19]} 11. Nxc4 {[%emt 0:04:19]} Bxc5 {[%emt 0:16:29]} 12. Be3 {[%emt 0:14:51]} Be6 {[%emt 0:08:32]} 13. Bxc5 {[%emt 0:27:16]} Qxc5 {[%emt 0:00:03]} 14. Ne3 {[%emt 0:01:33]} Qb5 {[%emt 0:08:11]} 15. Rdc1 {[%emt 0:10:23]} e4 {[%emt 0:04:22]} 16. Ne1 {[%emt 0:03:10]} Nd4 {[%emt 0:01:18]} 17. Qc5 {[%emt 0:00:01]} Nxe2+ {[%emt 0:01:33]} 18. Kh1 {[%emt 0:00:03]} Qxb2 {[%emt 0:05:55]} 19. Rcb1 {[%emt 0:01:06]} Qd2 {[%emt 0:10:31]} 20. Rxb7 {[%emt 0:01:27]} Nc3 {[%emt 0:01:29]} 21. Nf1 {[%emt 0:06:59]} Qd5 {[%emt 0:00:20]} 22. Qxd5 {[%emt 0:00:06]} Bxd5 {[%emt 0:00:39]} 23. Rb2 {[%emt 0:01:27]} Be6 {[%emt 0:10:25]} 24. Rc2 {[%emt 0:08:49]} Rac8 {[%emt 0:02:00]} 25. Ne3 {[%emt 0:02:42]} a5 {[%emt 0:09:22]} 26. f3 {[%emt 0:02:38]} Nxa2 {[%emt 0:03:01]} 27. fxe4 {[%emt 0:01:30]} Rxc2 {[%emt 0:01:52]} 28. N1xc2 {[%emt 0:00:04]} a4 {[%emt 0:01:04]} 29. e5 {[%emt 0:02:18]} Nd7 {[%emt 0:00:12]} 30. Nd4 {[%emt 0:00:28]} Nc3 {[%emt 0:04:34]} 31. Ra3 {[%emt 0:00:07]} Rc8 {[%emt 0:02:05]} 32. Nc6 {[%emt 0:00:14]} Kf8 {[%emt 0:03:30]} 33. Rxc3 Nxe5 {[%emt 0:00:01]} 34. Rc5 {[%emt 0:01:26]} Nxc6 {[%emt 0:00:21]} 35. Rxc6 {[%emt 0:00:01]} Rxc6 {[%emt 0:00:26]} 36. Bxc6 {[%emt 0:00:00]} a3 {[%emt 0:00:54]} 37. Nc2 {[%emt 0:00:02]} a2 {[%emt 0:00:02]} 38. Kg2 {[%emt 0:01:59]} Ke7 {[%emt 0:00:01]} 39. Kf2 {[%emt 0:00:34]} Kd6 {[%emt 0:00:00]} 40. Be4 {[%emt 0:00:11]} Kc5 {[%emt 0:00:22]} 41. Ke3 {[%emt 0:00:31]} Kc4 {[%emt 0:00:33]} 42. Kd2 {[%emt 0:00:39]} f5 {[%emt 0:01:33]} 43. Bf3 {[%emt 0:00:53]} Kb3 {[%emt 0:00:15]} 44. Kc1 {[%emt 0:00:29]} Kc3 {[%emt 0:00:28]} 45. h4 {[%emt 0:00:29]} g6 {[%emt 0:00:36]} 46. Be2 {[%emt 0:00:36]} Bd5 {[%emt 0:00:23]} 47. Bb5 {[%emt 0:00:27]} h6 {[%emt 0:01:20]} 48. Bd7 {[%emt 0:00:12]} Be4 {[%emt 0:00:59]} 49. Na1 {[%emt 0:00:01]} Bb1 {[%emt 0:00:29]} 50. Be6 {[%emt 0:01:02]} g5 {[%emt 0:00:02]} 51. hxg5 {[%emt 0:00:04]} hxg5 {[%emt 0:00:01]} 52. Bf7 {[%emt 0:01:09]} Kd4 {[%emt 0:01:16]} 53. Kb2 {[%emt 0:00:25]} Ke3 {[%emt 0:00:03]} 54. Nb3 {[%emt 0:00:35]} Kf3 {[%emt 0:00:22]} 55. Nd4+ {[%emt 0:00:26]} Kxg3 {[%emt 0:00:03]} 56. Bxa2 {[%emt 0:00:31]} Be4 {[%emt 0:01:29]} 57. Kc3 {[%emt 0:00:16]} g4 {[%emt 0:00:45]} 58. Be6 {[%emt 0:00:24]} f4 {[%emt 0:00:31]} 59. Ne2+ {[%emt 0:00:08]} Kf3 {[%emt 0:00:28]} 60. Bxg4+ {[%emt 0:00:03]} 1/2-1/2

[Event "Paracin Open 2022"]
[Site "Paracin"]
[Date "2022.07.13"]
[Round "6.6"]
[White "Neelash Saha"]
[Black "Makhnev, Denis"]
[Result "0-1"]
[ECO "E11"]
[WhiteElo "2446"]
[BlackElo "2492"]
[Annotator "ChessBase"]
[PlyCount "108"]
[EventDate "2022.07.08"]
[EventCountry "SRB"]
[SourceTitle "playchess.com"]
[Source "ChessBase"]
[SourceQuality "1"]
[TimeControl "5400+30"]

1. d4 {[%emt 0:06:01]} Nf6 {[%emt 0:00:46]} 2. c4 {[%emt 0:00:04]} e6 {[%emt 0:00:08]} 3. g3 {[%emt 0:00:04]} d5 {[%emt 0:00:09]} 4. Nf3 {[%emt 0:00:05]} Bb4+ {[%emt 0:00:08]} 5. Bd2 {[%emt 0:00:04]} Be7 {[%emt 0:00:08]} 6. Bg2 {[%emt 0:00:02]} O-O {[%emt 0:00:10]} 7. O-O {[%emt 0:00:02]} Nbd7 {[%emt 0:00:08]} 8. Qc2 {[%emt 0:00:06]} Ne4 {[%emt 0:00:08]} 9. Nc3 {[%emt 0:04:05]} Nxd2 {[%emt 0:00:10]} 10. Nxd2 {[%emt 0:00:17]} c6 {[%emt 0:00:13]} 11. Rfd1 {[%emt 0:02:56]} Rb8 {[%emt 0:14:29]} 12. e4 {[%emt 0:01:09]} dxc4 {[%emt 0:00:12]} 13. Nxc4 {[%emt 0:00:13]} b5 {[%emt 0:00:07]} 14. Ne3 {[%emt 0:00:52]} Qb6 {[%emt 0:03:56]} 15. Rab1 {[%emt 0:18:10]} Re8 {[%emt 0:27:12]} 16. b4 {[%emt 0:03:44]} e5 {[%emt 0:00:30]} 17. d5 {[%emt 0:02:26]} Nf6 {[%emt 0:00:13]} 18. Qb2 {[%emt 0:05:38]} Ng4 {[%emt 0:04:36]} 19. Qe2 {[%emt 0:39:07]} Nxe3 {[%emt 0:01:10]} 20. Qxe3 {[%emt 0:00:05]} Qxe3 {[%emt 0:17:21]} 21. fxe3 {[%emt 0:00:03]} Bd7 {[%emt 0:00:20]} 22. dxc6 {[%emt 0:00:45]} Bxc6 {[%emt 0:00:06]} 23. Bh3 {[%emt 0:00:03]} Red8 {[%emt 0:02:02]} 24. Nd5 {[%emt 0:00:30]} Bf8 {[%emt 0:02:33]} 25. Kf2 {[%emt 0:00:46]} Rd6 {[%emt 0:02:18]} 26. Bg2 {[%emt 0:05:30]} Rbd8 {[%emt 0:01:28]} 27. a3 {[%emt 0:01:56]} f5 {[%emt 0:03:58]} 28. Nc3 {[%emt 0:01:42]} Kf7 {[%emt 0:06:07]} 29. Rxd6 {[%emt 0:02:28]} Rxd6 {[%emt 0:00:06]} 30. Rd1 {[%emt 0:00:02]} Rxd1 {[%emt 0:04:19]} 31. Nxd1 {[%emt 0:00:04]} fxe4 {[%emt 0:00:50]} 32. Nc3 {[%emt 0:00:30]} Ke6 {[%emt 0:00:06]} 33. Bf1 {[%emt 0:01:16]} a6 {[%emt 0:00:10]} 34. Bh3+ {[%emt 0:00:03]} Kd6 {[%emt 0:01:28]} 35. Bc8 {[%emt 0:00:14]} a5 {[%emt 0:00:04]} 36. Ba6 {[%emt 0:03:24]} axb4 {[%emt 0:01:05]} 37. axb4 {[%emt 0:00:32]} Ke6 {[%emt 0:00:04]} 38. Nxb5 {[%emt 0:03:17]} Bxb4 {[%emt 0:00:07]} 39. Na7 {[%emt 0:01:06]} Bd7 {[%emt 0:01:05]} 40. Bb7 {[%emt 0:00:36]} Kd6 {[%emt 0:00:30]} 41. Bxe4 {[%emt 0:00:21]} Bc5 {[%emt 0:00:06]} 42. Bxh7 {[%emt 0:00:15]} Bxa7 {[%emt 0:00:04]} 43. Kf3 {[%emt 0:00:27]} Bc6+ {[%emt 0:01:28]} 44. e4 {[%emt 0:00:12]} Ba4 {[%emt 0:00:04]} 45. Kg4 {[%emt 0:00:16]} Ke6 {[%emt 0:00:32]} 46. Kg5 {[%emt 0:00:20]} Be8 {[%emt 0:00:06]} 47. h4 {[%emt 0:00:48]} Be3+ {[%emt 0:00:10]} 48. Kg4 {[%emt 0:00:04]} g6 {[%emt 0:00:47]} 49. Kf3 {[%emt 0:00:52]} Bc5 {[%emt 0:00:12]} 50. Bg8+ {[%emt 0:00:24]} Bf7 {[%emt 0:02:42]} 51. Bxf7+ {[%emt 0:00:12]} Kxf7 {[%emt 0:00:06]} 52. g4 {[%emt 0:00:57]} Be7 {[%emt 0:00:03]} 53. Kg3 {[%emt 0:00:55]} Ke6 {[%emt 0:00:05]} 54. g5 {[%emt 0:00:53]} Bxg5 {[%emt 0:01:08]} 0-1